Cogmind - Beta 13 @@@ ROGUE MODE // 2024.04.03 @ 21:12:51 // AFD2020/Player2 Player: Minty Result: Destroyed by G-34 Mercenary with Small Laser Performance ------------- Evolutions (1) 500 Regions Visited (3) 600 Robots Destroyed (30) 150 Value Destroyed (817) 817 Prototype IDs (6) 120 Alien Tech Used (0) 0 Bonus (-20) -20 TOTAL SCORE: 2167 Bonus ------- High Alert Combat Kills 108 Follower Combat Kills 364 Friendly Fire -492 Cogmind --------- Core Integrity 0/400 Matter 300/300 Energy 250/250 System Corruption 0% Temperature Cool (6) Movement Rolling (145) Ox3 Location -9/Mines Parts ------- > --- POWER (1) -------- Ion Engine > --- PROPULSION (2) --- Compact Wheel Compact Wheel > --- UTILITY (3) ------ Huge Storage Unit Improved Weapon Shielding Improved Weapon Shielding > --- WEAPON (3) ------- Improved Medium Laser Improved Assault Rifle Mace > --- INVENTORY (25) --- Ion Engine High-capacity Matter Pod (59) Structural Scanner Improved Sensor Array Improved Medium Laser Grenade Launcher Mace Peak State ------------ > --- POWER ------------ Ion Engine > --- PROPULSION ------- Compact Wheel Compact Wheel > --- UTILITY ---------- Small Storage Unit Improved Weapon Shielding Improved Weapon Shielding > --- WEAPON ----------- Improved Medium Laser Improved Assault Rifle Mace > --- INVENTORY -------- Ion Engine High-capacity Matter Pod Structural Scanner Improved Sensor Array Improved Weapon Shielding Improved Medium Laser Grenade Launcher Mace [Rating: 19] Favorites ----------- Power Ion Engine Engine Ion Engine Propulsion Compact Wheel Leg Aluminum Leg Wheel Compact Wheel Utility Improved Weapon Shielding Device Structural Scanner Storage Small Storage Unit Protection Improved Weapon Shielding Weapon Grenade Launcher Energy Gun Improved Medium Laser Ballistic Gun Improved Assault Rifle Launcher Grenade Launcher Impact Weapon Mace Build | -11 -10 -9 -9 ------- Run | Yrd Mat Mat Min Slots Evolved 2 | . . 2 . Power . | . . . . Propulsion . | . . . . Utility 1 | . . 1 . Weapon 1 | . . 1 . Parts Attached 17 | . 7 9 1 Power 1 | . . 1 . Engine 1 | . . 1 . Core . | . . . . Reactor . | . . . . Propulsion 2 | . 2 . . Treads . | . . . . Leg . | . . . . Wheel 2 | . 2 . . Hover . | . . . . Flight . | . . . . Utility 6 | . 1 4 1 Device 1 | . 1 . . Storage 2 | . . 2 . Processor . | . . . . Hackware . | . . . . Protection 3 | . . 2 1 Artifact . | . . . . Weapon 8 | . 4 4 . Energy Gun 2 | . . 2 . Energy Cannon . | . . . . Ballistic Gun 1 | . . 1 . Ballistic Cannon . | . . . . Launcher 2 | . 2 . . Special Weapon . | . . . . Impact Weapon 3 | . 2 1 . Slashing Weapon . | . . . . Piercing Weapon . | . . . . Special Melee Weapon . | . . . . Unidentified Prototypes 2 | . . 2 . Parts Lost 1 | . . . 1 Power . | . . . . Propulsion . | . . . . Utility 1 | . . . 1 Weapon . | . . . . Highest Loss Streak 1 | . . . 1 To Critical Strikes . | . . . . Average Slot Usage (%) 96 | . 96 95 99 Engine 12 | . 14 11 11 Leg 9 | . 18 . . Wheel 15 | . 9 22 22 Device 6 | . 10 3 . Storage 13 | . 14 14 11 Protection 9 | . . 14 21 Energy Gun 12 | . 16 7 11 Ballistic Gun 4 | . . 6 11 Launcher 8 | . 8 13 . Impact Weapon 3 | . 2 1 11 Naked Turns . | . . . . Heaviest Build 97 | 14 17 97 97 Greatest Support 32 | 20 32 32 32 Greatest Overweight (x) 3 | . . 3 3 Average Overweight (x) . | . . . 2 Largest Inventory Capacity 25 | . 8 25 25 Average Capacity 12 | . 8 10 25 Most Carried 8 | . 8 8 8 Average Carried 7 | . 6 7 7 Final Capacity 25 | 8 8 25 25 Final Carried 8 | 6 8 8 7 Class Distribution -------------------- 84% | Mutant 15% | Bomber Dominant Class ---------------- Mutant | -10/Materials Mutant | -9/Materials Mutant | -9/Mines Resources | -11 -10 -9 -9 ----------- Run | Yrd Mat Mat Min Matter Collected 738 | 200 70 355 113 Remotely . | . . . . Salvage Created 834 | . 159 562 113 Parts 46 | . 10 36 . Haulers Intercepted 3 | . . 3 . Recyclers Shooed 1 | . . 1 . Parts Field Recycled . | . . . . Retrieved Matter . | . . . . Parts Self-Destructed . | . . . . Prevented . | . . . . Kills | -11 -10 -9 -9 ------- Run | Yrd Mat Mat Min Combat Hostiles Destroyed 18 | . 4 11 3 Guns 13 | . 2 9 2 AOE 4 | . 2 2 . Classes Destroyed 11 | . 2 8 1 Worker 1 | . . 1 . Builder 2 | . . 1 1 Tunneler 3 | . . 2 1 Hauler 3 | . . 3 . Recycler 1 | . . 1 . Mechanic 1 | . . 1 . Watcher 3 | . 2 1 . Swarmer 2 | . . 2 . Grunt 11 | . 4 6 1 Sentry 3 | . . 3 . Assembled 2 | . . . 2 Best Kill Streak 10 | . 3 10 3 Combat Bots Only 6 | . 2 6 3 Max Kills in Single Turn 2 | . 1 2 1 Gunslinging . | . . . . Exploded 1 | . 1 1 . Melee . | . . . . Uniques/NPCs Destroyed . | . . . . Combat | -11 -10 -9 -9 -------- Run | Yrd Mat Mat Min Hostile Shots Fired 66 | . 18 40 8 Missed 20 | . 5 14 1 Damage Taken 625 | . 171 368 86 Core 122 | . 41 39 42 Absorbed by Shields . | . . . . Redirected to Shielding 125 | . . 105 20 Core Remaining (%) 81 | 100 63 . . Volleys Fired 52 | . 18 31 3 Largest 3 | . 2 3 2 Hottest 109 | . 90 109 79 Shots Fired 109 | . 36 67 6 Gun 86 | . 30 50 6 Cannon . | . . . . Launcher 23 | . 6 17 . Special . | . . . . Kinetic 28 | . . 25 3 Thermal 42 | . 15 24 3 Explosive 23 | . 6 17 . Electromagnetic 16 | . 15 1 . Robot Hit Streak 7 | . 7 4 4 Robot Miss Streak 4 | . 3 4 1 Penetration Max . | . . . . Secondary Targets 2 | . 1 1 . Max Gunslinging Chain 1 | . 1 1 . Shots Hit Robots 63 | . 17 39 7 Core Hits 52 | . 9 40 3 Critical Kills . | . . . . Critical Parts Destroyed 2 | . . . 2 Critical Strikes 3 | . 1 . 2 Burn 1 | . 1 . . Smash 2 | . . . 2 Melee Attacks 9 | . . 2 7 Impact 9 | . . 2 7 Slashing . | . . . . Piercing . | . . . . Sneak Attacks 3 | . . 1 2 Combat Hostiles . | . . . . Follow-up Attacks . | . . . . Damage Inflicted 1898 | . 339 1310 249 Guns 800 | . 199 536 65 Cannons . | . . . . Explosions 804 | . 140 664 . Melee 294 | . . 110 184 Ramming . | . . . . Kinetic 334 | . . 287 47 Thermal 356 | . 102 236 18 Explosive 804 | . 140 664 . Electromagnetic 110 | . 97 13 . Impact 294 | . . 110 184 Slashing . | . . . . Piercing . | . . . . Highest Corruption . | . . . . Average Corruption . | . . . . Corruption Purged . | . . . . Corruption Blocked . | . . . . Overload Shots . | . . . . Overflow Damage 170 | . . 6 164 Projectiles . | . . . . Explosions 2 | . . 2 . Melee 168 | . . 4 164 Knockbacks . | . . . . Impact . | . . . . Kinetic . | . . . . Secondary . | . . . . Self-Inflicted Damage . | . . . . Shots . | . . . . Rammed 1 | . 1 . . Targets Rammed 1 | . 1 . . Kicked . | . . . . Crushed . | . . . . Highest Temperature 216 | . 216 191 38 Average Temperature 79 | . 82 83 17 Received Heat Transfer 297 | . 72 147 78 Siege Activations . | . . . . Robots Corrupted . | . . . . Combat Hostiles . | . . . . Parts Fried 5 | . 1 . 4 Impact Corruptions 7 | . . 1 6 Robots Melted . | . . . . Combat Hostiles . | . . . . Parts Melted . | . . . . Heat Transferred 869 | . 370 462 37 Parts Sabotaged . | . . . . Parts Stolen . | . . . . Parts Stripped . | . . . . Power Chain Reactions . | . . . . Alert | -11 -10 -9 -9 ------- Run | Yrd Mat Mat Min Peak Influence 876 | . 693 876 368 Initial 341 | . . 208 341 Average 444 | . 454 488 345 Maximum Alert Level 3 | . 2 3 1 Low Security (%) 10 | . 22 . . Level 1 40 | . 10 50 100 Level 2 39 | . 67 22 . Level 3 8 | . . 27 . Level 4 . | . . . . Level 5 . | . . . . High Security . | . . . . Max Security . | . . . . Squads Dispatched 8 | . 6 2 . Investigation 8 | . 6 2 . Extermination . | . . . . Reinforcement . | . . . . Assault . | . . . . Garrison . | . . . . Intercept . | . . . . Searches Triggered . | . . . . Construction Impeded . | . . . . Haulers Reinforced . | . . . . Active Scanning Responses . | . . . . Cargo Convoy Interrupts . | . . . . Stealth | -11 -10 -9 -9 --------- Run | Yrd Mat Mat Min Distress Signals 3 | . 1 2 . Communications Jammed . | . . . . Distress Signals . | . . . . Times Spotted 41 | . 14 23 4 Peak Tracking Total 8 | . 4 8 3 Tactical Retreats 1 | . . . 1 Traps | -11 -10 -9 -9 ------- Run | Yrd Mat Mat Min Traps Triggered . | . . . . Indirectly . | . . . . Trap Hack Attempts . | . . . . Triggered . | . . . . Disarmed . | . . . . Reprogrammed . | . . . . Reused . | . . . . Traps Extracted . | . . . . Installed . | . . . . Triggered . | . . . . Machines | -11 -10 -9 -9 ---------- Run | Yrd Mat Mat Min Machines Disabled 5 | . 5 . . Max in Single Turn 1 | . 1 . . Machines Repaired . | . . . . Machines Dismantled . | . . . . Machines Sabotaged 2 | . 1 1 . Overloaded Fab Kills . | . . . . Hacking | -11 -10 -9 -9 --------- Run | Yrd Mat Mat Min Machines Accessed 10 | . 8 2 . Terminals 8 | . 6 2 . Fabricators . | . . . . Repair Stations . | . . . . Recycling Units 2 | . 2 . . Scanalyzers . | . . . . Garrison Access . | . . . . Total Hacks 39 | . 33 6 . Successful 24 | . 21 3 . Failed 15 | . 12 3 . Catastrophic . | . . . . Database Lockouts . | . . . . Manual 18 | . 12 6 . Terminals 34 | . 28 6 . Fabricators . | . . . . Repair Stations . | . . . . Recycling Units 5 | . 5 . . Scanalyzers . | . . . . Garrison Access . | . . . . Terminal Hacks 9 | . 8 1 . Prototype ID Bank 2 | . 1 1 . Level Access Points 1 | . 1 . . Branch Access Points 1 | . 1 . . Unreport Threat 1 | . 1 . . Locate Traps 2 | . 2 . . Dispatch Records 1 | . 1 . . Surveillance Status 1 | . 1 . . Fabricator Hacks . | . . . . Repair Station Hacks . | . . . . Recycling Unit Hacks 3 | . 3 . . Report Inventory 1 | . 1 . . Retrieve Components 2 | . 2 . . Scanalyzer . | . . . . Garrison Access Hacks . | . . . . Unauthorized Hacks 12 | . 10 2 . Terminals 10 | . 8 2 . Track 1 | . 1 . . Botnet 3 | . 3 . . Disrupt 1 | . . 1 . Sabotage 3 | . 2 1 . Search 2 | . 2 . . Fabricators . | . . . . Repair Stations . | . . . . Recycling Units 2 | . 2 . . Tunnel 2 | . 2 . . Scanalyzers . | . . . . Garrison Access . | . . . . Data Cores Recovered . | . . . . Used . | . . . . Hacking Detections 7 | . 5 2 . Full Trace Events 3 | . 2 1 . Feedback Events . | . . . . Feedback Blocked . | . . . . Robot Schematics Acquired . | . . . . Robots Built . | . . . . Authchips . | . . . . Time . | . . . . Total Robot Build Rating . | . . . . Part Schematics Acquired . | . . . . Parts Built . | . . . . Authchips . | . . . . Time . | . . . . Total Part Build Rating . | . . . . Parts Repaired . | . . . . Time . | . . . . Parts Recycled . | . . . . Recycled Matter . | . . . . Retrieved Matter . | . . . . Retrieved Components . | . . . . Parts Scanalyzed . | . . . . Part Schematics Acquired . | . . . . Parts Damaged . | . . . . Bothacking | -11 -10 -9 -9 ------------ Run | Yrd Mat Mat Min Used RIF Installer . | . . . . Robots Hacked . | . . . . Non-combat . | . . . . Combat . | . . . . Robot Hacks Applied . | . . . . Relay Couplers Released . | . . . . Fabnet Peak Effective % . | . . . . Robots Rewired . | . . . . Allies Hacked . | . . . . Hacks Repelled . | . . . . Allies | -11 -10 -9 -9 -------- Run | Yrd Mat Mat Min Total Allies 1 | . 1 . . Largest Group 1 | . 1 1 1 Highest-Rated Group 61 | . 59 61 58 Highest-Rated Ally 61 | . 59 61 58 Total Orders . | . . . . Ally Attacks 38 | . 18 18 2 Total Damage 1548 | . 1060 461 27 Kills 23 | . 15 8 . Allies Corrupted . | . . . . Allies Melted . | . . . . Intel | -11 -10 -9 -9 ------- Run | Yrd Mat Mat Min Robot Analysis Total . | . . . . Derelict Logs Recovered 1 | . . . 1 Drone Launches . | . . . . Drone Recoveries . | . . . . Exploration | -11 -10 -9 -9 ------------- Run | Yrd Mat Mat Min Turns Passed 899 | . 431 293 175 Spaces Moved 583 | 1 316 165 101 Core . | . . . . Treads . | . . . . Legs 193 | 1 192 . . Wheels 390 | . 124 165 101 Hover . | . . . . Flight . | . . . . Fastest Speed 100 | 120 100 100 130 Average Speed 116 | 120 112 106 144 Slowest Speed 145 | 120 120 145 145 Overloaded Moves . | . . . . Propulsion Burnouts . | . . . . Robots Hopped . | . . . . Cave-ins Triggered . | . . . . Exploration Rate (%) 31 | 1 70 25 28 Regions Visited 3 Branch Regions 1 Pre-discovered Areas 3 | . 2 . 1 Known Exits Taken 1 | . 1 . . Unknown Exits Taken 2 | 1 . 1 . Scrap Searched . | . . . . Spaces Dug 7 | . 7 . . Terrain Destroyed 67 | . 14 53 . Melee . | . . . . Projectile . | . . . . AOE 67 | . 14 53 . Terrain Rammed . | . . . . Walls Destroyed . | . . . . Machines Disabled . | . . . . Actions | -11 -10 -9 -9 --------- Run | Yrd Mat Mat Min Total 690 | . 359 219 112 Wait 4 | . 4 . . Move 580 | . 315 164 101 Hop . | . . . . Pick Up 9 | . 5 4 . Fast Attach 8 | . 3 5 . Attach 4 | . 2 1 1 Detach 5 | . 4 1 . Swap 5 | . 2 3 . Drop 13 | . 5 8 . Fire 52 | . 18 31 3 Melee 9 | . . 2 7 Ram 1 | . 1 . . Kick . | . . . . Crush . | . . . . Escape Stasis . | . . . . Rewire . | . . . . Trap . | . . . . Miscellaneous . | . . . . Route ------- -11/Scrapyard -10/Materials (discovered 6 exits: *Mat x3 / *Min x2 / [Sub]) -9/Materials (discovered 2 exits: [*Min x2]) -9/Mines (discovered 1 exit: [*Mat]) History --------- Turn | Location | Event 1 | -11/Scrapyard | Discovered new exit (range 0) 1 | -11/Scrapyard | Entered Materials 107 | -10/Materials | Discovered new exit (range 7) 128 | -10/Materials | Discovered new exit (range 10) 193 | -10/Materials | Discovered new exit (range 16) 196 | -10/Materials | Discovered new exit (range 5) 322 | -10/Materials | Build established: Mutant 353 | -10/Materials | Identified exit to Materials 367 | -10/Materials | Identified exit to Mines 432 | -10/Materials | Entered another Materials area 432 | -9/Materials | Evolved 2 slots: Utility x1, Weapon x1 516 | -9/Materials | Discovered new exit (range 14) 632 | -9/Materials | Core integrity fell below 50% 644 | -9/Materials | Discovered new exit (range 16) 645 | -9/Materials | Core integrity fell below 20% 725 | -9/Materials | Entered Mines 732 | -9/Mines | Received a Rocket Launcher from a helpful Derelict 791 | -9/Mines | Learned location of Storage (-7) 859 | -9/Mines | Excavation squad dispatched 859 | -9/Mines | A large section of the Mines collapsed 899 | -9/Mines | Discovered new exit (range 14) 900 | -9/Mines | Destroyed by G-34 Mercenary with Small Laser Last Messages --------------- 00836_ Wheel fried. 00836_ T-07 Excavator destroyed. 00838_ Acquired 14 matter. 00859_ ALERT: Suspicious cave-in, suspected derelict activity in mines. Dispatching escorted excavation squad. 00859_ as-16157 suffers critical hit (Smash). 00859_ Destroyed Asb. Maul. 00859_ Destroyed Asb. Hover Unit. 00859_ as-16157 system corrupted by crushing effect. 00860_ as-16157 system terminally corrupted. 00866_ Imp. Weapon Shielding destroyed. 00867_ as-12937 destroyed. 00870_ Acquired 16 matter. 00871_ Acquired 14 matter. 00886_ T-07 Excavator is excavating. 00887_ G-34 Mercenary destroyed. 00891_ T-07 Excavator is excavating. 00895_ Acquired 46 matter. 00899_ EXIT=FOUND 00899_ R-06 Scavenger collects Ion Engine. Map ----- +----------------------------------------------------+ | ?????????????????????????????????????????????? | | ?????????????????????????????????????????????? | | ?????????????????????????????????????????????? | | ?????????????????????????????????????????????? | | ?????????????????????????????????????????????? | | ?????????????????????????????????????????????? | | ?????????????????????????????????????????????? | | ?????????????????????????????????????????????? | | ?????????????????????????????????????????????? | | ?????????????????????????????????????????????? | | ?????????????????????????????????????????????? | | ?????????????????????????????????????????????? | | ?????????????????????????????????????????????? | | ????????????????????????????????????#####????? | | ???????????????????????????????????## ##???? | | ?????????????????????????????####### ##### | | ?????????????????????????????# # | | ?????????????????????????????# ### ### | | ?????????????????????????????# #?# ##?## | | ????????????????????????####?# #?####???# | | ???????????????????????## ### #???????## | | ???????????????????????# ## #???????# | | ???????????????????#???# ## #?###???# | | ???????????????????# ??# ## ### #??# | | ???????????????????# ### #?# ## ### """ | | ???????????????????# @ t##?# ## ## """ | | ???????????????????#gr t #?# ## """ | | ???????????????????# ###; ######## | | ???????????????????#=??##; ## ##?# | | ???????????????????#%???###;;;## ### # | | ???????????????????#[?????##### ## ### | | ??????????????????? ?????# # ##?? | | ??????????????????? ?????# ## ##??? | | ??????????????????? ?????# ## ###???? | | ?????????????????? ?????# ### #?????? | | ?????????????????? ?????? ######?# #?????? | | ?????????????????? ????? #???????# ######? | | ?????????????????? ????# ????????# #? | | ?????????????????